{"text_format":"3","workbook":"xlsx","n_sheets":11,"sheets":["Hinweise","Deckblatt","Vertretungsberechtigung","Sachausgaben 2019","Angaben zu den Sachausgaben19","Abschreibungen","Anlage Jugendverbandsarbeit §12","Personalausgaben 2019","Angaben zur Fachkraft","Ausgaben-u.Finanzierungsplan 19","Ausgaben-u.Finanzierungsplan 20"],"not_rendered":{"defined_names":9,"comments":5},"read":"whole","date_system":"1900"}

{"sheet":"Hinweise","index":0,"n_rows":26,"n_cols":8,"rows_kept":26,"merged":[[2,0,2,6],[4,0,4,7],[5,0,5,7],[6,0,6,7],[7,0,7,7],[8,0,8,7],[9,0,9,7],[10,0,10,7],[11,0,11,7],[12,0,12,7],[13,0,13,7],[14,0,14,7],[15,0,15,7],[16,0,16,7],[17,0,17,7],[18,0,18,7],[19,0,19,7],[20,0,20,7],[21,0,21,7],[22,0,22,7],[23,0,23,7],[24,0,24,7],[25,0,25,7]]}
["Landeshauptstadt Dresden - Jugendamt",{"$nulls":6},{"$f":"Deckblatt!U1","v":"Förderung von Trägern der freien Jugendhilfe 2019/2020"}]
[]
["Hinweise zum Antrag auf Gewährung einer Zuwendung"]
[]
["Aus Gründen der Lesbarkeit bedient sich dieses Formular der männlichen Schreibweise, schließt die weibliche Form der Begriffe jedoch selbstverständlich mit ein."]
["Rechtliche Grundlage der Förderung von Trägern der freien Jugendhilfe ist der § 74 SGB VIII und die diesen \n§ ausfüllenden Richtlinien und Vorschiften der Landeshauptstadt Dresden. Ein Rechtsanspruch auf die Gewährung einer Zuwendung ergibt sich daraus nicht."]
["Es können nur Angebote in der Landeshauptstadt Dresden für Dresdner Kinder, Jugendliche und junge Erwachsene, die durch in Dresden ansässige Träger der freien Jugendhilfe erbracht werden, gefördert werden. "]
["Angebote anderer Träger der freien Jugendhilfe, die überregional oder in anderen Gebietskörperschaften tätig sind, können gefördert werden, wenn sie den Bedarf von Dresdner jungen Menschen erfüllen und als Träger der freien Jugendhilfe nach § 75 SGB VIII anerkannt sind."]
["Die Förderung muss form- und fristgerecht beantragt werden. Der Antrag muss vollständig sein. Es besteht die Wahlmöglichkeit, eine Förderung für das Jahr 2019 oder eine Mehrjahresförderung für die Jahre 2019 und 2020 zu beantragen. Antragsschluss ist der 31. August 2018. "]
["Der Antrag besteht aus mehreren Tabellenblättern bzw. Seiten: Deckblatt, Vertretungsberechtigung, Sachausgaben 2019, Angaben zu den Sachausgaben 2019, Abschreibungen, Anlage Jugendverbände (nur für Antragsteller der Jugendverbandsarbeit), Personalausgaben 2019, Angaben zur Fachkraft , Ausgaben- und Finanzierungsplan 2019, Ausgaben- und Finanzierungsplan 2020 (nur bei Antrag auf Mehrjahresförderung)."]
["Zuwendungen werden nur gewährt, wenn mit dem Vorhaben noch nicht begonnen wurde. Die Fortsetzung jährlich wiederkehrender Maßnahmen, bei deren Förderungsvoraussetzungen keine Änderungen eingetreten sind, gilt nicht als vorzeitiger Vorhabensbeginn. Vorzeitiger Vorhabensbeginn ist zu beantragen. Bei einer Zustimmung wird keine Entscheidung über die Bewilligung von Zuwendungen getroffen. "]
["Die im Antrag dargestellten Ausgaben müssen im direkten Zusammenhang mit dem Projekt (Jugendhilfeangebot) stehen. Ausgaben des Antragstellers, die ihm auch anfallen würden, wenn er diese hier zur Beantragung stehende Leistung nicht erbringt, sind nicht zuwendungsfähig."]
["Es ist ein Eigenanteil (Eigenmittel, Eigenleistungen) in Höhe von 5% der zuwendungsfähigen Ausgaben zu erbringen. Für ehrenamtliche Tätigkeit werden 8,50 EUR pro Stunde als Eigenleistung berücksichtigt."]
["Zur Förderung beantragte Fachkräfte:"]
["Voraussetzung für eine Förderung ist neben der Erfüllung der Qualifikationsanforderungen der Abschluss eines schriftlichen Arbeitsvertrages."]
["Die Qualifikationsnachweise sind dem Arbeitgeber im Original vorzulegen. Dem Jugendamt einzureichende Kopien sind mit dem Vermerk \"Das Original hat am ... (Datum) vorgelegen\" zu versehen."]
["Des Weiteren ist Grundlage für die Förderung einer Personalstelle die Bewertung der Tätigkeit und Feststellung der Entgeltgruppe nach TVöD. Zu diesem Zweck ist eine Stellenbeschreibung mit dem Antrag (sofern noch nicht erfolgt) einzureichen. Das Formular kann über den JugendInfoService/Fachkräfteportal der Landeshauptstadt Dresden unter der Rubrik \"Förderung der freien Jugendhilfe\" abgerufen werden."]
["Es gilt das Besserstellungsverbot. Demnach sind Personalausgaben nur im Rahmen des geltenden Tarifrechts für die Bediensteten der Landeshauptstadt Dresden zuwendungsfähig."]
["Ausfüllhinweise:"]
["Beginnen Sie mit dem Ausfüllen des Formulars beim Deckblatt."]
["Das Antragsformular enthält Zellverknüpfungen und selbstrechnende Felder. Fehlermeldungen sind erst nach dem vollständigen Ausfüllen der vorgesehenen Felder zu beachten."]
["Zahlen sind fortlaufend und ohne Freizeichen, Punkte oder Währung einzugeben."]
["Tabellenblätter, die nicht für die Antragstellung benötigt werden, sind nicht zu löschen; es sind nur die Tabellenblätter auszudrucken, die ausgefüllt wurden."]
["Druck: Auf Grund verschiedener PC-Einstellungen kann es vorkommen, dass an Ihrem PC für ein hier angelegtes Tabellenblatt 2 Seiten ausgedruckt werden. Bitte richten Sie die Seite neu ein (Menü: \"Ansicht\" -> \"Seitenumbruchvorschau\" -> mit der linken Maustaste die blauen Balken so verschieben, dass nur noch eine Seite angezeigt wird -> Menü: \"Ansicht\" -> \"Normal\"."]
["Für die Beantragung von Fördermitteln für internationale Jugendbegegnungen, Jugendleiterschulungen, Kinder- und Jugenderholungsmaßnahmen, Jugendberufshilfe- und Jugendgerichtshilfeangebote stehen andere Antragsformulare zur Verfügung.  "]
["Bei Fragen zum Ausfüllen des Formulars wenden Sie sich an: N. Schuster, SB Zuschusswesen, Tel. 4884671, E-Mail: nschuster@dresden.de."]

{"sheet":"Deckblatt","index":1,"n_rows":59,"n_cols":23,"rows_kept":59,"merged":[[2,0,3,9],[2,11,3,20],[4,0,5,9],[5,11,7,20],[6,0,7,9],[8,0,9,9],[9,11,10,20],[12,13,14,18],[17,0,17,19],[18,0,18,20],[27,1,27,9],[27,11,27,19],[28,1,28,5],[28,7,28,8],[28,11,28,15],[28,17,28,18],[30,0,32,7],[30,13,32,20],[31,8,32,12],[33,0,33,11],[33,13,33,20],[34,0,34,11],[34,13,34,20],[35,0,35,11],[35,13,35,20],[36,0,36,11],[36,13,36,20],[37,0,37,11],[37,13,37,20],[38,0,39,11],[38,13,38,20],[39,13,39,20],[40,0,40,11],[40,13,40,20],[44,0,44,3],[44,4,44,6],[44,7,44,10],[44,11,44,13],[44,14,44,16],[44,17,44,20],[57,0,57,5],[57,15,57,20],[59,0,59,20]]}
["Landeshauptstadt Dresden - Jugendamt",{"$nulls":19},"Förderung von Trägern der freien Jugendhilfe 2019/2020"]
["Antragsteller:",{"$nulls":10},"Aktenzeichen"]
[{"$nulls":22},"Nur die fett umrandeten Felder müssen am PC ausgefüllt werden."]
[]
[{"$nulls":11},"Angebotsbezeichnung:"]
[]
[]
[]
[{"$nulls":11},"Anschrift des Angebotes (Durchführungsort)"]
[]
[]
["Antrags- und Bewilligungsbehörde:                                                                                                                                                                                                                                                                                    "]
["Landeshauptstadt Dresden",{"$nulls":12},"Abgabetermin: 31.08.2018"]
["Jugendamt, Abt. Kinder-, Jugend- und"]
["Familienförderung, SG Zuschusswesen"]
["Postfach 12 00 20"]
["01001 Dresden "]
["Antrag auf Gewährung einer Zuwendung 2019/2020"]
["für Einrichtungen und Dienste, die folgende Leistungen der Jugendhilfe nach SGB VIII erbringen"]
["(Zutreffendes ankreuzen)"]
["Jugendarbeit (§ 11 SGB VIII)",{"$nulls":11},"Jugendverbandsarbeit (§ 12 SGB VIII)",{"$nulls":6},"Jugendsozialarbeit (§ 13 SGB VIII)"]
[]
["Erzieh. Kinder- u. Jugendschutz (§ 14 SGB VIII)",{"$nulls":18},"allg. Förderung der Erziehung in der Familie (§ 16 SGB VIII)"]
[]
["Dachverbandsarbeit (§§11, 12, 13, 14, 16 SB VIII) - (Interessenvertretung, Unterstützung, Beratung, Begleitung der Mitglieder, "]
["insbesondere Jugendverbände und Nichtmitglieder (Jugendinitiativen, -gruppen, die Aufgaben der freien Jugendhilfe erfüllen)"]
[]
[null,"Fördermittelantrag 2019",{"$nulls":9},"Fördermittelantrag 2020"]
[null,{"$f":"'Ausgaben-u.Finanzierungsplan 19'!O9","v":0},{"$nulls":4},"EUR",{"$f":"'Personalausgaben 2019'!E21","v":0},null,"VK",null,{"$f":"'Ausgaben-u.Finanzierungsplan 20'!O9","v":0},{"$nulls":4},"EUR",{"$f":"'Ausgaben-u.Finanzierungsplan 20'!G10/40","v":0},null,"VK"]
[]
["Erforderliche Unterlagen",{"$nulls":12},"Liegt der Antragsbehörde bereits vor!\nDie Unterlagen müssen nicht erneut eingereicht werden, jedoch ist das Datum der aktuellen Fassung hier zu vermerken!"]
[{"$nulls":8},"Dem Antrag beigefügt:\n(wenn ja, ankreuzen)"]
[]
["Satzung/(Jugend)Ordnung/Gesellschaftervertrag"]
["aktueller Vereins-/Handelsregisterauszug"]
["Vertretungsberechtigung (Formular siehe Folgeblatt)"]
["Nachweis der Gemeinnützigkeit \n(i. d. R. Steuerfreistellungsbescheid d. Finanzamtes)"]
["Anerkennung nach § 75 SGB VIII (sofern Förderung auf Dauer angelegt oder Träger anderer Gebietskörperschaft angehört)"]
["Angebote mit Fachkraftförderung:\n - aktuelle Konzeption inkl. Qualitätsentwicklungsbeschreibung\n  (Gültigkeit mindestens bis 2020)\n - jahresbezogene Arbeitsplanung 2019 (Abgabe bis 30.11.2018)"]
[]
["Ehrenamtlich geführte Angebote: Projektbeschreibung 2019"]
["Ansprechpartner"]
["für Förderung/Finanzen",{"$nulls":10},"für die sozialpädagogische/fachliche Arbeit im Angebot"]
["Name",{"$nulls":3},"Tel./Mobilfunk:",null,null,"E-Mail-Adresse",{"$nulls":3},"Name",null,null,"Tel./Mobilfunk:",null,null,"E-Mail-Adresse"]
[]
[]
["Erklärung "]
["Der  Antragsteller erklärt, dass die Angaben im Antrag (Deckblatt einschließlich allen Folgeseiten) vollständig und richtig sind; "]
["die Grundsätze einer sparsamen und wirtschaftlichen Haushaltsplanung eingehalten wurden; die Gewähr der zweckentsprechenden "]
["und wirtschaftlichen Verwendung der Mittel gegeben ist; die fachlichen Voraussetzungen für die geplante Maßnahme erfüllt werden;"]
["gemeinnützige Ziele verfolgt werden; die Gewähr für eine den Zielen des Grundgesetzes förderliche Arbeit gegeben ist."]
[]
["Belehrung"]
["Der Antragsteller wird belehrt, dass die Ausgaben - sofern eine  Vorsteuerabzugsberechtigung vorliegt - ohne Umsatzsteuer "]
["anzugeben sind und Änderungen, die Auswirkungen auf den Antrag haben, unverzüglich und unaufgefordert anzuzeigen sind."]
["Es liegt eine Vorsteuerabzugsberechtigung vor (ankreuzen): "]
[]
[]
["Ort, Datum",{"$nulls":6},"rechtsverbindliche Unterschrift(en)",{"$nulls":7},"in PC-/Blockschrift"]

{"sheet":"Vertretungsberechtigung","index":2,"n_rows":49,"n_cols":14,"rows_kept":49,"merged":[[0,13,0,16],[2,13,2,16],[4,0,4,16],[6,0,6,4],[9,8,9,16],[12,0,12,16],[13,0,15,4],[13,5,13,16],[14,5,14,16],[17,0,17,4],[17,5,17,16],[18,0,19,4],[18,5,18,16],[21,0,21,16],[22,5,22,16],[25,0,25,16],[26,0,28,4],[26,5,26,16],[27,5,27,16],[32,1,32,16],[34,1,34,11],[38,1,38,16],[41,14,41,16],[43,0,44,15],[45,0,45,15],[47,0,47,3],[47,12,47,16]]}
["Landeshauptstadt Dresden - Jugendamt",{"$nulls":7},"Fördermittelantrag 2019/2020",{"$nulls":3},"Az:",{"$f":"Deckblatt!L3","v":0}]
[]
[{"$nulls":12},"Vertretungsregelung für das Jahr / die Jahre"]
["Träger:"]
[{"$f":"Deckblatt!A3","v":0}]
[]
["Der Antragsteller ist (ankreuzen)"]
[]
["1.1 rechtsfähig",{"$nulls":5},"1.2 nicht rechtsfähig",null,"und ggf. Teil der rechtsfähigen Körperschaft:"]
[]
[]
["Vertretungsregelungen"]
["Der Antragsteller wird gemäß Satzung/Ordnung/Gesellschaftervertrag nach innen und außen vertreten durch:"]
["allein:"]
[]
[{"$nulls":5},"Name, Vorname, Funktion (z. B. Erster Vorsitzender)"]
[]
["gemeinsam:"]
["(Vertretung durch mindestens zwei Personen gemeinschaftlich u.gleichzeitig)"]
[{"$nulls":5},"Namen, Vornamen, Funktionen (z.B. Vorsitzender und stellvertretender Vorsitzender)"]
["Geschäftsführer:"]
["Der vertretungsberechtigte Vorstand hat gemäß Satzung/Ordung/Gesellschaftervertrag folgende Person zum Geschäftsführer ernannt. Die Vollmacht/Ernennung ist beizufügen (sofern noch nicht vorliegend)."]
[]
[{"$nulls":5},"Name, Vorname"]
["Vollmacht/Unterschriftsberechtigung "]
["Der vertretungsberechtigte Vorstand bzw. ernannte Geschäftsführer erteilt folgender/n Person(en) die alleinige oder gemeinsame Vollmacht zur Ausübung diverser Geschäftsgänge:"]
[]
[]
[{"$nulls":5},"Namen, Vornamen"]
["Die Vollmacht umfasst folgende Geschäfts- bzw. Verwaltungshandlungen (ankreuzen und ggf. ergänzen):"]
[" - für alle Angebote"]
[" - für das/die Angebot(e)"]
[]
[]
[null," - Beantragung von Fördermitteln"]
[null," - Einlegen von Rechtsmitteln (Widerspruch, Klage)"]
[null," - Verwendungsnachweis"]
[null," - andere das Verwaltungsverfahren betreffende Verwaltungshandlungen wie…"]
[]
[]
["Mitglieder des Stadtjugendring Dresden e.  V.:"]
["Die Vollmacht zwischen der o. g. Körperschaft und dem Stadtjugendring Dresden e. V. vom "]
[]
["behält hinsichtlich der Ermächtigung zu allen Verwaltungshandlungen, die Beantragung und Gewährung von Fördermitteln der Landeshauptstadt Dresden betreffend, ihre Gültigkeit (ankreuzen, sofern zutreffend):"]
[]
["Die aktuelle Vollmacht ist beigefügt (ankreuzen)"]
[]
[]
["Ort, Datum",{"$nulls":4},"rechtsverbindliche Unterschrift(en)",{"$nulls":6},"in Block-/PC-Schrift"]

{"sheet":"Sachausgaben 2019","index":3,"n_rows":67,"n_cols":22,"rows_kept":67,"merged":[[0,13,0,15],[1,0,1,12],[1,13,1,15],[2,0,14,0],[2,2,3,3],[2,6,2,9],[2,10,2,12],[2,13,2,15],[3,13,3,15],[4,13,4,15],[5,6,5,9],[5,10,5,12],[5,13,5,15],[6,1,7,1],[6,2,7,7],[6,13,6,15],[7,13,7,15],[8,13,8,15],[9,13,9,15],[10,13,10,15],[11,13,11,15],[12,13,12,15],[13,13,13,15],[14,13,14,15],[15,13,15,15],[16,0,24,0],[16,2,16,12],[16,13,16,15],[17,2,17,12],[17,13,17,15],[18,2,18,12],[18,13,18,15],[19,2,19,12],[19,13,19,15],[20,2,20,12],[20,13,20,15],[21,2,21,12],[21,13,21,15],[22,1,24,1],[22,2,24,2],[22,3,22,12],[22,13,22,15],[23,3,23,12],[23,13,23,15],[24,3,24,12],[24,13,24,15],[25,13,25,15],[26,0,36,0],[26,2,26,12],[26,13,26,15],[27,2,27,12],[27,13,27,15],[28,2,28,12],[28,13,28,15],[29,2,29,12],[29,13,29,15],[30,2,30,12],[30,13,30,15],[31,2,31,12],[31,13,31,15],[32,2,32,5],[32,7,32,8],[32,10,32,11],[32,13,32,15],[33,2,33,5],[33,7,33,8],[33,10,33,11],[33,13,33,15],[34,1,36,1],[34,2,36,2],[34,3,34,12],[34,13,34,15],[35,3,35,12],[35,13,35,15],[36,3,36,12],[36,13,36,15],[37,13,37,15],[38,0,39,0],[38,2,38,12],[38,13,38,15],[39,2,39,12],[39,13,39,15],[40,0,41,0],[40,13,40,15],[41,13,41,15],[42,13,42,15],[43,13,43,15],[44,0,45,15],[46,0,46,15]]}
["Landeshauptstadt Dresden - Jugendamt",{"$nulls":8},{"$f":"Vertretungsberechtigung!I1","v":"Fördermittelantrag 2019/2020"},null,null,"Aktenzeichen:",{"$f":"Deckblatt!L3","v":0}]
["Sachausgabenplanung 2019",{"$nulls":12},"Ausgaben \nin EUR"]
["1. Gebäude-/Bewirtschaftungsausgaben \n(für Flächen, die durch das Angebot genutzt werden)","1.1","Miete *2\n(gemäß Vertrag)",null,"Kaltmiete *1",null,"vom Angebot genutzte Fläche in qm:"]
[{"$nulls":4},"Betriebskosten ",null,"(nur f. Flächen, die vom Angebot genutzt werden)"]
[null,"1.2","Weitere Betriebskosten einschl. Medien"]
[null,"1.3","Gebäudepacht/Erbbauzins *1",{"$nulls":3},"vom Angebot genutzte Fläche in qm:"]
[null,"1.4","Nutzungsentgelte (stundenweise Nutzung, pauschale Abgeltung aller Ausgaben):",{"$nulls":5},"fremde Räume "]
[{"$nulls":8},"eigene Räume"]
[null,"1.5","Reinigungskosten/Hausverbrauchsmaterial/Müllentsorgung"]
[null,"1.6","Erhaltungsaufwand/Reparaturkosten bewegliche Sachen"]
[null,"1.7","Werterhaltung/Reparaturkosten für Räume/Grundstück"]
[null,"1.8","Abschreibungen auf Gebäude"]
[null,"1.9","Gebühren/Beiträge/Steuern/Versicherungen Gebäude, Inventarversicherung"]
[null,"1.10","Reinigungsdienste"]
[null,"1.11","Hausmeisterdienste"]
[{"$nulls":12},"Summe 1.",{"$f":"SUM(N3:P15)","v":0},{"$nulls":7}," "]
["2. Ausgaben im Rahmen der sozialpädagogischen Arbeit","2.1","Verbrauchsmaterialien, geringwert.Wirtschaftsgüter und bewegliche Sachen für die inhaltliche Arbeit;\nsofern Kaufpreis über 410 EUR oh. MwSt. (BS) hier benennen mit geplanten Kosten im Einzelnen:"]
[null,"BS:"]
[null,"2.2","Eintrittsgelder, Fahrtkosten für spontane Gruppenaktivitäten außer Haus"]
[null,"2.3","Ausgaben für Feste/Veranstaltungen (inkl. Honorar) *2",{"$nulls":18}," "]
[null,"2.4","Honorare für Künstler/-innen und/oder Einzelprojektleitung\n(nicht für zeitlich begrenzte Maßnahmen, Feste/Veranstaltungen) *2"]
[null,"2.5","Lebensmittel*2"]
[null,"2.6","sonstige Ausgaben für sozialpäd. Arbeit (benennen!)"]
[]
[]
[{"$nulls":12},"Summe 2.",{"$f":"SUM(N17:P25)","v":0}]
["3. weitere Sachausgaben","3.1","Telekommunikation, Internetnutzung"]
[null,"3.2","Geringwert.Wirtschaftsgüter und bewegliche Sachen (ausgenommen 2.1);\nsofern Kaufpreis über 410 EUR oh. MwSt. (BS) hier benennen mit geplanten Kosten im Einzelnen:"]
[null,"BS:"]
[null,"3.3","Ausgaben für Dienst-Kfz  (i. d. R. anteilig entsprechend dem Nutzungsanteil für das Angebot)"]
[null,"3.4","Dienstgänge: Fahrtkostenerstattung Nutzung Privat-Kfz / Stadtfahrten (Fahrkarten)"]
[null,"3.5","Fort- u. Weiterbildungskosten (inkl. Reise- u. Übernachtungskosten) einschl. Fachtagungen/Supervision für haupt- u. nebenberufliche Mitarbeiter/-innen"]
[null,"3.6","Bundesfreiwilligendienst, Freiwilliges Soziales Jahr",{"$nulls":3},"*2","Anzahl der Personen:",null,null,"Anzahl aller Monate:"]
[null,"3.7","Aufwandsentschädigung Ehrenamtliche/Praktikanten",{"$nulls":3},"*2","Anzahl der Personen:",null,null,"Anzahl aller Monate:"]
[null,"3.8","sonstige Sachausgaben (benennen!)\nz.B.Fachbücher"]
[]
[]
[{"$nulls":12},"Summe 3.",{"$f":"SUM(N27:P37)","v":0}]
["4. Verwaltung","4.1","Verwaltungsaufwendungen im Angebot (Büromaterial, Porto, öff. Bekanntmachungen, Anschaffung/Leasing/\nWartung Bürotechnik, Buchhaltung, Gehaltsberechnung)"]
[null,"4.2","Verwaltungsumlage (Sach- und Personalausgaben für zentrale Verwaltung, Planung, Steuerung und Kontrrolle; gilt nicht bei Geschäftsstellenförderung)",{"$nulls":16}," "]
["5. zeitlich begrenzte Maßnahmen","5.1","Bildungsmaßnahmen *2"]
[null,"5.2","Erlebnispädagogische Maßnahmen *2"]
[{"$nulls":12},"Sachausgaben gesamt",{"$f":"N16+N26+N38+N39+N40+N41+N42","v":0}]
[{"$nulls":12},"Fördermittelantrag"]
["*1 Der Vertrag ist, sofern im Jugendamt noch nicht vorliegend, mit einzureichen!\n*2 Zu diesen Ausgaben sind weitere Angaben notwendig siehe Folgeblatt \"Angaben zu den Sachausgaben\"!"]
[]
[]
[]
[]
["Finanzierungsplan"]
["beantragte Zuwendung Jugendamt"]
["weitere öffentliche Mittel (EU/Bund/Land/AA/Kommune)"]
["Art: "]
[]
["sonstige Finanzierungsquellen"]
["Art: "]
[]
["Teilnehmerbeiträge"]
["weitere Eigenmittel"]
["gesamt",{"$nulls":12},{"$f":"SUM(N51:P59)","v":{"v":0,"d":"0.00"}}]
[]
["*1 Abgrenzung zu beweglichen Sachen des Anlagevermögens - vergleiche Formblatt BS-Antrag "]
[]
[]
[]
[]
["Ort, Datum",{"$nulls":5},"rechtsverbindliche Unterschrift(en)"]

{"sheet":"Angaben zu den Sachausgaben19","index":4,"n_rows":16,"n_cols":18,"rows_kept":16,"merged":[[0,14,0,16],[2,0,2,16],[3,0,3,16],[4,1,4,16],[6,1,6,16],[7,1,7,16],[9,1,9,16],[13,0,51,16],[17,17,21,20]]}
["Landeshauptstadt Dresden - Jugendamt",{"$nulls":8},{"$f":"'Sachausgaben 2019'!J1","v":"Fördermittelantrag 2019/2020"},{"$nulls":3},"Az:",{"$f":"Deckblatt!L3","v":0}]
[]
["Notwendige Angaben zu den Sachausgaben 2019"]
["Folgende geplante Ausgaben bzw. Maßnhamen sind genauer zu beschreiben:"]
["1.1","Miete: In welcher Höhe werden Einnahmen auf Grund der Vermietung von Flächen, deren Ausgaben Bestandteil des Fördermittelantrages sind, geplant?"]
["2.3","Feste/Veranstaltungen: Inhalt, Veranstaltungsort, Zielsetzung, geplante Anzahl an Teilnehmern"]
["2.4","Honorare Künstler/-innen, Einzelprojektleitung: Einsatzgrund, Anzahl der Honorarstunden"]
["2.5","Lebensmittel: Welchen Zweck sollen die Lebensmittel erfüllen; warum kommen sie zum Einsatz? (reine Verpflegungskosten sind nicht zuwendungsfähig)"]
["3.6","Bundesfreiwilligendienst: Welche Aufgaben sollen übernommen werden?"]
["3.7","Aufwandsentschädigung: Welche Aufgaben sollen übernommen werden?"]
["5.1","Bildungsmaßnahmen (Inhalt, Zielgruppe, päd. Zielsetzung)"]
["5.2","erlebnispädagogische Maßnahmen (Inhalt, Zielgruppe, päd. Zielsetzung)"]
["Angaben zu o. g. Punkten (ggf. Blatt anfügen)"]
[]
[]
[{"$nulls":17},"Mit Doppelklick ins Feld / Absatz einfügen: Alt und Enter gleichzeitig klicken"]

{"sheet":"Abschreibungen","index":5,"n_rows":29,"n_cols":6,"rows_kept":29,"merged":[[4,0,4,5],[6,0,6,1],[6,2,6,5],[8,0,8,1],[8,2,8,3],[10,0,10,1],[12,0,12,1],[14,0,14,1],[16,0,16,1],[18,0,18,1],[20,0,20,1],[22,0,22,1],[24,0,24,1],[26,0,26,5]]}
["Landeshauptstadt Dresden - Jugendamt",null,null,{"$f":"'Angaben zu den Sachausgaben19'!J1","v":"Fördermittelantrag 2019/2020"},null,{"$f":"Deckblatt!L3","v":0}]
[]
["Berechnung Abschreibungen auf Gebäude"]
[]
["Das Gebäude muss sich im Eigentum des Träger befinden. Es werden nur für die Flächen, die durch das Jugendhilfeangebot genutzt werden, Abschreibungen als zuwendungsfähig anerkannt. Grundlage der Berechnung sind die Anschaffungs- oder Herstellungskosten für das Gebäude, welche um die öffentlichen Zuschüsse, welche seit 1991 in die Anschaffung oder Herstellung des Gebäudes geflossen sind, zu bereinigen sind. Der verbleibende Betrag, herunter gebrochen auf die Nutzungsfläche für das Angebot, wird entsprechend der festgelegten Nutzungsdauer (siehe AfA-Tabelle, max. über 60 Jahre) linear abgeschrieben."]
[]
["Gebäudeanschrift:"]
[]
["Zeitpunkt der Anschaffung (Monat/Jahr):"]
[]
["Kosten der Anschaffung/Herstellung:",null,null,"Euro","brutto od. netto:"]
[]
["öffentliche Zuschüsse seit 1991:",null,null,"Euro"]
[]
["um öffentliche Zuschüsse bereinigte Anschaffungs-/ Herstellungskosten:",null,{"$f":"C11-C13","v":0},"Euro"]
[]
["Nutzungsdauer gemäß \nAfA-Tabelle:",null,null,"Jahre"]
[]
["zuwendungsfähige Abschreibung ganzes Gebäude ",null,null,"Euro im Jahr 2018"]
[]
["Nutzung des Gebäudes durch das Angebot:",null,null,"Prozent"]
[]
["Abschreibungssatz für das Jugendhilfeangebot:",null,{"$f":"C19*C21/100","v":0},"Euro im Jahr 2018"]
[]
["Abschreibungen auf den Antragszeitraum gekürzt \n(sofern weniger als ein Jahr):",null,null,"Euro im Antragszeitraum"]
[]
["Sofern noch nicht im Jugendamt vorliegend, ist ein Nachweis über die Anschaffungs- und Herstellungskosten sowie ein Raumbelegungsplan (Flächen in qm gesamt/Ausweisung der Flächen in qm, die durch das Angebot dauerhaft genutzt werden) bei anteiliger Nutzung mit einzureichen."]
[]
["https://www.smart-rechner.de/abschreibung/ratgeber/abschreibung_gebaeude.php"]

{"sheet":"Anlage Jugendverbandsarbeit §12","index":6,"n_rows":38,"n_cols":15,"rows_kept":38,"merged":[[0,11,0,12],[2,4,2,12],[4,4,4,12],[6,4,6,8],[8,0,8,13],[9,0,9,13],[11,1,11,10],[12,1,12,10],[12,11,12,12],[13,1,14,10],[15,11,16,12],[16,1,17,10],[19,1,19,10],[19,11,19,12],[20,1,20,10],[20,11,20,12],[21,1,21,10],[21,11,21,12],[25,1,25,6],[25,7,25,9],[25,10,25,12],[26,1,26,6],[26,7,26,9],[26,10,26,12],[27,1,27,6],[27,7,27,9],[27,10,27,12],[28,1,28,6],[28,7,28,9],[28,10,28,12],[29,1,29,6],[29,7,29,9],[29,10,29,12],[30,1,30,6],[30,7,30,9],[30,10,30,12],[31,1,31,6],[31,7,31,9],[31,10,31,12],[32,1,32,6],[32,7,32,9],[32,10,32,12],[34,0,36,12],[37,0,38,13]]}
["Landeshauptstadt Dresden - Jugendamt",{"$nulls":6},{"$f":"'Ausgaben-u.Finanzierungsplan 19'!J1","v":"Fördermittelantrag 2019/2020"},null,null,"Az:",{"$f":"Deckblatt!L3","v":0}]
["Dieses Formular muss nur von den Antragstellern ausgefüllt werden, die nur Fördermittel nach § 12 SGB VIII beantragen."]
["Antragsteller:",{"$nulls":3},{"$f":"Deckblatt!A3","v":0}]
[]
["Angebot:",{"$nulls":3},{"$f":"Deckblatt!L6","v":0}]
[]
["Aktenzeichen:",{"$nulls":3},{"$f":"Deckblatt!L3","v":0}]
[]
["Antrag auf Gewährung einer Zuwendung 2019"]
[" - Anlage Jugendverbandsarbeit nach § 12 SGB VIII -"]
[]
["1.","Mitgliederzahl zum Zeitpunkt der Antragstellung:\n"]
[null,"  > des Vereins"]
[null," > des Jugendverbandes \n(Mitglieder, die das 27. Lebensjahr noch nicht vollendet haben; bei überregional wirkenden Jugendverbänden sind nur die jungen Menschen zu zählen, die in Dresden ihren Wohnsitz haben)"]
[]
["2.","Anzahl der Jugendgruppen innerhalb des beantragenden Jugendverbandes"]
[null,"(bei überregional wirkenden Jugendverbänden sind nur die Dresdner Gruppen zu zählen)"]
[]
["3.","Beantragung von Bildungsmaßnahmen (für Dresdner junge Menschen):"]
[null,"3.1 Anzahl der Maßnahmen, die an die eigenen Mitglieder gerichtet sind"]
[null,"3.2 Anzahl der Maßnahmen, die an Nichtmitglieder gerichtet sind"]
[null,"3.3 Anzahl der Maßnahmen, die an die eigenen Mitglieder und andere junge Menschen gerichtet sind"]
[]
["4.","Untersetzung des Fördermittelantrages Sachausgaben"]
[]
[null,"ausgewählte Ausgaben",{"$nulls":5},"Ausgaben                          in EUR",null,null,"davon Finanzierung über Jugendamt\nin EUR"]
[null,"Miete, Betriebskosten",{"$nulls":5},{"$f":"'Sachausgaben 2019'!N3+'Sachausgaben 2019'!N4+'Sachausgaben 2019'!N5","v":0}]
[null,"Nutzungsentgelt für fremde Räume \n(stundenweise Nutzung)",{"$nulls":5},{"$f":"'Sachausgaben 2019'!N7","v":0}]
[null,"Nutzungsentgelt für eigene Räume \n(stundenweise Nutzung)",{"$nulls":5},{"$f":"'Sachausgaben 2019'!N8","v":0}]
[null,"alle anderen Gebäude- und Bewirtschaftungsausgaben",{"$nulls":5},{"$f":"'Sachausgaben 2019'!N16-'Anlage Jugendverbandsarbeit §12'!H27:J27-'Anlage Jugendverbandsarbeit §12'!H28:J28-'Anlage Jugendverbandsarbeit §12'!H29","v":0}]
[null,"Bildungsmaßnahmen 3.1"]
[null,"Bildungsmaßnahmen 3.2"]
[null,"Bildungsmaßnahmen 3.3"]
[null,{"$f":"IF(H31+H32+H33<>'Sachausgaben 2019'!N41,\"Fehler: Die dargestellten Ausgaben für die Bildungsmaßnahmen entsprechen in ihrer Summe nicht den Ausgaben im Sachausgabenblatt.\",\"\")","v":""}]
["Platz für Bemerkungen: ",{"$nulls":13},"Mit Doppelklick ins Feld / Absatz einfügen: Alt und Enter gleichzeitig klicken"]
[]
[]
["Es ist eine formlose Projektbeschreibung und/oder Jahresarbeitsplanung mit Angaben zu den Zielen, Zielgruppe(n), konkreten Vorhaben und Inhalten der Jugendverbandsarbeit 2019 beizufügen."]

{"sheet":"Personalausgaben 2019","index":7,"n_rows":33,"n_cols":12,"rows_kept":33,"merged":[[0,9,0,10],[6,1,6,3],[6,4,6,6],[6,7,6,8],[6,9,6,10],[7,1,7,3],[7,4,7,6],[7,7,7,8],[7,9,7,10],[8,1,8,3],[8,4,8,6],[8,7,8,8],[8,9,8,10],[9,1,9,3],[9,4,9,6],[9,7,9,8],[9,9,9,10],[10,1,10,3],[10,4,10,6],[10,7,10,8],[10,9,10,10],[11,1,11,3],[11,4,11,6],[11,7,11,8],[11,9,11,10],[12,1,12,3],[12,4,12,6],[12,7,12,8],[12,9,12,10],[13,1,13,3],[13,4,13,6],[13,7,13,8],[13,9,13,10],[14,1,14,3],[14,4,14,6],[14,7,14,8],[14,9,14,10],[15,1,15,3],[15,4,15,6],[15,7,15,8],[15,9,15,10],[16,1,16,3],[16,4,16,6],[16,7,16,8],[16,9,16,10],[17,1,17,3],[17,4,17,6],[17,7,17,8],[17,9,17,10],[18,1,18,3],[18,4,18,6],[18,7,18,8],[18,9,18,10],[19,1,19,8],[19,9,19,10],[20,0,20,3],[20,6,20,7],[20,9,20,10],[21,9,21,10],[22,0,22,10],[24,0,24,10],[25,0,30,10]]}
["Landeshauptstadt Dresden - Jugendamt",{"$nulls":4},{"$f":"Vertretungsberechtigung!I1","v":"Fördermittelantrag 2019/2020"},null,null,"Az:",{"$f":"Deckblatt!L3","v":0}]
[]
["Zu jeder beantragten Person ist das Datenblatt \"Angaben zur Fachkraft\" dem Antrag beizufügen!"]
[]
[{"$nulls":5},"Personalausgaben 2019"]
[]
["Nr.","Name, Vorname",null,null,"Stellenbezeichnung",null,null,"Arbeitszeit\nh/Woche (Jahresdurchschnitt)",null,"Ausgaben                   in EUR"]
[1]
[2]
[3]
[4]
[5]
[6]
[7]
[8]
[9]
[10]
[11]
[12]
[null,"Berufsgenossenschaft*                                                                                                                          "]
["gesamt",{"$nulls":3},{"$f":"G21/40","v":0},"VK",{"$f":"SUM(H8:I19)","v":0},null,"h",{"$f":"SUM(J8:K20)","v":0}]
[{"$nulls":8},"Fördermittelantrag"]
["* Es sind nur die Ausgaben für Berufsgenossenschaft zu beantragen, die im Antragsjahr voraussichtlich anfallen werden (i. d. Regel Beiträge, die im Rahmen der 2018 geförderten Beschäftigten entstehen und 2019 nach dem 28.2. fällig werden)."]
["Weitere Finanzierungsquellen"]
["Sofern zur Finanzierung einer Fachkraft weitere Fördermittelgeber/Finanzierungsquellen geplant sind, ist die Fachkraft, Finanzierungsquelle und die geplante Höhe zu benennen."]
[{"$nulls":11},"Mit Doppelklick ins Feld / Absatz einfügen: Alt und Enter gleichzeitig klicken"]
[]
[]
[]
[]
[]
[]
["Anlagen: Formular(e) \"Angaben zur Fachkraft\""]

{"sheet":"Angaben zur Fachkraft","index":8,"n_rows":58,"n_cols":22,"rows_kept":58,"merged":[[2,10,2,15],[2,17,9,23],[6,0,6,4],[6,6,6,8],[6,10,6,15],[8,15,38,15],[9,2,9,3],[9,4,9,6],[9,7,9,9],[12,0,13,8],[15,0,16,8],[18,0,19,8],[22,9,22,13],[23,2,23,3],[23,5,23,7],[23,9,23,14],[26,8,27,13],[27,4,28,5],[29,1,29,14],[30,0,30,10],[30,13,32,14],[34,0,34,2],[34,3,34,4],[34,5,34,6],[34,7,34,8],[34,9,34,10],[34,11,34,12],[34,13,34,14],[38,0,38,2],[38,3,38,5],[38,11,38,13],[41,8,41,9],[44,0,44,2],[44,3,44,4],[44,5,44,6],[44,8,44,10],[44,11,44,12],[44,13,44,14],[44,16,44,18],[44,19,44,20],[44,21,44,22],[46,0,46,2],[46,3,46,4],[46,5,46,6],[46,8,46,10],[46,11,46,12],[46,13,46,14],[46,16,46,18],[46,19,46,20],[46,21,46,22],[48,0,48,2],[48,3,48,4],[48,5,48,6],[48,8,48,10],[48,11,48,12],[48,13,48,14],[52,0,52,3],[52,4,52,6],[52,7,53,8],[52,9,53,10],[52,11,52,12],[52,13,53,14],[54,7,54,8],[54,9,54,10],[54,13,54,14],[55,0,55,3],[55,4,55,8],[55,9,57,11],[55,12,58,14],[56,0,56,3],[56,4,56,8],[57,4,57,8]]}
["Landeshauptstadt Dresden - Jugendamt",{"$nulls":14},"Förderung von Trägern der freien Jugendhilfe"]
[]
["Angaben zur geförderten Fachkraft",{"$nulls":8},"Zeitraum",{"$nulls":7},"Dieses Blatt wird auch als separates Formular zur Verfügung gestellt, damit es bei Ihnen im PC abgelegt werden und für folgende Beantragungen wieder verwendet werden kann. Es ist somit nicht mehr notwendig, das Formular immer wieder neu auszufüllen und muss nur noch entsprechend aktualisiert und den folgenden Anträgen beigefügt werden."]
["Zutreffendes ist anzukreuzen."]
[]
["Name, Vorname",{"$nulls":5},"Geburtsdatum",{"$nulls":3},"Stellen-/Tätigkeitsbezeichnung"]
[]
[]
["Stellenbeschreibung"]
["ist beigefügt",null,"oder",null,"Stellenbeschreibung liegt\ndem Amt vor mit Datum: ",{"$nulls":6},"Sie behält ihre Gültigkeit:"]
["Ausbildung"]
["Abschluss:"]
[{"$nulls":9},"Kopie* des Abschlusses:"]
[{"$nulls":9},"ist beigefügt:",null,null,"liegt dem Amt vor:"]
["berufsbegleitende Ausbildung:"]
[{"$nulls":9},"Immatrikulationsbescheinigung:"]
[{"$nulls":9},"ist beigefügt:",null,null,"liegt dem Amt vor:"]
["Zusatzqualifikationen:"]
[{"$nulls":9},"Kopie*:"]
[{"$nulls":9},"ist beigefügt:",null,null,"liegt dem Amt vor:"]
["*Die kopierten Qualifikationsnachweise müssen mit dem Vermerk des Trägers \"Das Original hat am ... (Datum) vorgelegen\" versehen sein."]
["Vergütung"]
["in Anlehnung an den Tarif öffentlicher Dienst (TVöD bzw. TVÜ-VKA)",{"$nulls":8},"anderer Tarifvertrag (Bezeichnung)"]
["Entgeltgruppe:",{"$nulls":4},"übergeleitete(r)  Beschäftigte(r)"]
[]
["Sozialdaten (nur für \"übergeleitete Beschäftigte\")"]
["Familienstand:",null,"ledig",null,"verheiratet",null,"verwitwet",null,"Ehepartner im öffentlichen Dienst  bzw. nach dem Überleitungstarifvertrag des TVöD vergütet:"]
["Stichtag 30.09.2005",{"$nulls":3},"geschieden"]
[]
["Kinder: ","(Angaben sind für alle übergeleitete Beschäftigte zu leisten; es sind nur die Kinder zu berücksichtigen, die bis zum 31.12.2005 geboren wurden)"]
["1. Anzahl der Kinder, für welche der/die Beschäftigte im Antragszeitraum Kindergeld erhält:"]
["                       "]
[]
[]
["Geb.daten der zu berücksichtigenden Kinder:"]
[{"$nulls":3},"1. Kind",null,"2. Kind",null,"3. Kind",null,"4. Kind",null,"5. Kind",null,"6. Kind"]
["Beschäftigungszeit"]
[]
["in der o. g. Tätigkeit beschäftigt seit: ",{"$nulls":5},"Aufnahme der Tätigkeit im Angebot am:"]
[]
["Arbeitsumfang ",{"$nulls":7},"Jahresdurchschnitt:",{"$nulls":3},"in VK:"]
["Regelmäßige wöchentliche Arbeitszeit:",{"$nulls":7},{"$f":"ROUND((F45/12*D45)+(N45/12*L45)+(F47/12*D47)+(N47/12*L47)+(F49/12*D49)+(N49/12*L49),2)","v":0},null,"h/Woche",null,{"$f":"ROUND(I42/40,2)","v":0},{"$nulls":3},"Bsp.:"]
[]
["Datum (von - bis)",null,null," in Monaten",null,"Std./Woche",null,null,"Datum (von - bis)",null,null," in Monaten",null,"Std./Woche",null,null,"Datum (von - bis)",null,null," in Monaten",null,"Std./Woche"]
[{"$nulls":16},"01.01. - 31.03.",null,null,{"v":3,"d":"3.00"},null,"20"]
["Datum (von - bis)",null,null," in Monaten",null,"Std./Woche",null,null,"Datum (von - bis)",null,null," in Monaten",null,"Std./Woche",null,null,"Datum (von - bis)",null,null," in Monaten",null,"Std./Woche"]
[{"$nulls":16},"01.04. - 15.10.",null,null,{"v":6.5,"d":"6.50"},null,"40"]
["Datum (von - bis)",null,null," in Monaten",null,"Std./Woche",null,null,"Datum (von - bis)",null,null," in Monaten",null,"Std./Woche"]
[{"$nulls":16},{"$f":"IF((D45+L45+D47+L47+D49+L49)>12,\"zu viele Monate!\",\"\")","v":""}]
[]
["Lohnnebenkosten etc.",{"$nulls":3},"geringfügig beschäftigt (Minijob)"]
[]
["AG-Anteile SV in %",{"$nulls":3},"Umlage-Verfahren der Krankenkassen in %",null,null,"AG-Prozentsatz gesamt",null,"AG-Anteile ges.               in EUR",null,"VWL in EUR",null,"bAV/Jahr                 in EUR"]
["PV","RV","AV","KV","U1","U2","IU",{"$nulls":4},"im Monat","im Jahr"]
[{"$nulls":7},{"$f":"SUM(A55:G55)","v":0}]
["PV: Pflegeversicherung                                RV: Rentenversicherung",{"$nulls":3},"U1: Lohnfortzahl.verfahren der Krankenkassen im Krankheitsfall",{"$nulls":4},"VWL: Vermögenswirksame Leistungen für 1,0 VK > max. 6,65 € pro Monat",null,null,"bAV: die Arbeitgeberaufwendungen für eine betriebl. Altersvorsorge sind max. in Höhe der städtischen Altersvorsorge (ZVK) zuwendungsfähig. "]
["AV: Arbeitslosenversicherung                         KV: Krankenversicherung",{"$nulls":3},"U2: Lohnfortzahlungsverfahren der Krankenkassen bei Mutterschaft"]
[{"$nulls":4},"IU: Insolvenzgeldumlage an die KK (ausgenommen Körperschaften des öff. Rechts)"]

{"sheet":"Ausgaben-u.Finanzierungsplan 19","index":9,"n_rows":21,"n_cols":20,"rows_kept":21,"merged":[[0,15,0,18],[2,0,2,18],[4,0,5,3],[4,4,4,8],[4,9,4,13],[4,14,4,18],[5,4,5,7],[5,9,5,12],[5,14,5,17],[5,20,5,23],[7,0,7,3],[7,4,7,8],[7,9,7,13],[7,14,7,18],[8,0,8,3],[8,4,8,7],[8,9,8,12],[8,14,8,17],[9,0,9,3],[9,4,9,7],[9,9,9,12],[9,14,9,17],[10,0,10,3],[10,4,10,7],[10,9,10,12],[10,14,10,17],[11,0,11,3],[11,4,11,7],[11,9,11,12],[11,14,11,17],[12,0,12,3],[12,4,12,7],[12,9,12,12],[12,14,12,17],[14,0,15,3],[14,4,14,8],[14,9,14,13],[14,14,14,18],[15,4,15,8],[15,9,15,13],[15,14,15,18],[15,19,17,23],[16,0,17,3],[16,4,16,8],[16,9,16,13],[16,14,16,18],[17,4,17,8],[17,9,17,13],[17,14,17,18],[20,0,39,18]]}
["Landeshauptstadt Dresden - Jugendamt",{"$nulls":8},{"$f":"Vertretungsberechtigung!I1","v":"Fördermittelantrag 2019/2020"},{"$nulls":4},"Az:",{"$f":"Deckblatt!L3","v":0}]
[]
["Ausgaben- und Finanzierungsplan 2019"]
[]
["Ausgaben",{"$nulls":3},"Personalausgaben",{"$nulls":4},"Sachausgaben",{"$nulls":4},"Gesamtausgaben"]
[{"$nulls":4},{"$f":"'Personalausgaben 2019'!J21","v":0},{"$nulls":3},"EUR",{"$f":"'Sachausgaben 2019'!N43","v":0},{"$nulls":3},"EUR",{"$f":"SUM(E6:M6)","v":0},{"$nulls":3},"EUR"]
[]
["Finanzierung",{"$nulls":3},"Personalausgaben",{"$nulls":4},"Sachausgaben",{"$nulls":4},"gesamt"]
["Fördermittelantrag ",{"$nulls":3},{"$f":"'Personalausgaben 2019'!J22","v":0},{"$nulls":3},"EUR",{"$f":"'Sachausgaben 2019'!N44","v":0},{"$nulls":3},"EUR",{"$f":"E9+J9","v":0},{"$nulls":3},"EUR"]
["weitere öffentliche Mittel",{"$nulls":7},"EUR",{"$nulls":4},"EUR",{"$f":"SUM(E10:M10)","v":0},{"$nulls":3},"EUR"]
["sonstige Finanzierungsquellen",{"$nulls":7},"EUR",{"$nulls":4},"EUR",{"$f":"SUM(E11:M11)","v":0},{"$nulls":3},"EUR"]
["Eigenmittel",{"$nulls":7},"EUR",{"$nulls":4},"EUR",{"$f":"SUM(E12:M12)","v":0},{"$nulls":3},"EUR"]
["gesamt",{"$nulls":3},{"$f":"E9+E10+E11+E12","v":0},{"$nulls":3},"EUR",{"$f":"SUM(J9:M12)","v":0},{"$nulls":3},"EUR",{"$f":"SUM(E13:M13)","v":0},{"$nulls":3},"EUR"]
[{"$nulls":7},{"$f":"IF(E6<>E13,\"Fehler: Ausgaben ungleich Finanzierung\",\"\")","v":""},null,{"$f":"IF(J6<>J13,\"Fehler: Ausgaben ungleich Finanzierung\",\"\")","v":""},{"$nulls":9},"Fehlermeldung erst beachten, wenn das Ausfüllen beendet ist."]
["Eigenleistungen",{"$nulls":3},"Anzahl der Stunden",{"$nulls":4},{"v":8.5,"d":"8.50 €"},{"$nulls":4},"in EUR"]
[{"$nulls":9},"je Stunde",{"$nulls":4},{"$f":"E16*J15","v":0},{"$nulls":4},"Die Eigenleistungen werden ihrem geldwerten Betrag entsprechend in der Berechnungsformel \"Eigenanteil in %\" auf der Ausgabenseite zu den Gesamtausgaben hinzu gerechnet und auf der Einnahmenseite bei der Berechnung des prozentualen Eigenanteils neben den Eigenmitteln mit berücksichtigt."]
["Eigenanteil",{"$nulls":3},"Eigenmittel in %",{"$nulls":4},"Eigenleistungen in %",{"$nulls":4}," = Eigenanteil in %"]
[{"$nulls":4},{"$f":"ROUND(O12*100/O6,1)","v":{"$error":"#DIV/0!"}},{"$nulls":4},{"$f":"ROUND(O16*100/(O6+O16),1)","v":{"$error":"#DIV/0!"}},{"$nulls":4},{"$f":"ROUND((O16+O12)*100/(O6+O16),1)","v":{"$error":"#DIV/0!"}}]
[]
["Platz für Bemerkungen"]
[{"$nulls":19},"Absatz einfügen: ALT- und Enter-Taste gleichzeitig drücken"]

{"sheet":"Ausgaben-u.Finanzierungsplan 20","index":10,"n_rows":21,"n_cols":20,"rows_kept":21,"merged":[[0,15,0,18],[3,0,3,18],[4,0,5,3],[4,4,4,8],[4,9,4,13],[4,14,4,18],[5,4,5,7],[5,9,5,12],[5,14,5,17],[5,20,5,23],[7,0,7,3],[7,4,7,8],[7,9,7,13],[7,14,7,18],[8,0,9,3],[8,4,8,7],[8,9,9,12],[8,13,9,13],[8,14,9,17],[8,18,9,18],[9,4,9,5],[9,6,9,7],[10,0,10,3],[10,4,10,7],[10,9,10,12],[10,14,10,17],[11,0,11,3],[11,4,11,7],[11,9,11,12],[11,14,11,17],[12,0,12,3],[12,4,12,7],[12,9,12,12],[12,14,12,17],[13,0,13,3],[13,4,13,7],[13,9,13,12],[13,14,13,17],[14,19,15,23],[15,0,16,3],[15,4,15,8],[15,9,15,13],[15,14,15,18],[16,4,16,8],[16,9,16,13],[16,14,16,18],[17,0,18,3],[17,4,17,8],[17,9,17,13],[17,14,17,18],[18,4,18,8],[18,9,18,13],[18,14,18,18],[20,0,39,18]]}
["Landeshauptstadt Dresden - Jugendamt",{"$nulls":8},{"$f":"Vertretungsberechtigung!I1","v":"Fördermittelantrag 2019/2020"},{"$nulls":4},"Az:",{"$f":"Deckblatt!L3","v":0}]
[]
["Blatt muss ausgefüllt werden, wenn eine Mehrjahresförderung (2019 + 2020) beantragt wird!"]
["Ausgaben- und Finanzierungsplan 2020"]
["Ausgaben",{"$nulls":3},"Personalausgaben",{"$nulls":4},"Sachausgaben",{"$nulls":4},"Gesamtausgaben"]
[{"$nulls":8},"EUR",{"$nulls":4},"EUR",{"$f":"SUM(E6:M6)","v":0},{"$nulls":3},"EUR"]
[]
["Finanzierung",{"$nulls":3},"Personalausgaben",{"$nulls":4},"Sachausgaben",{"$nulls":4},"gesamt"]
["Fördermittelantrag Jugendamt Dresden",{"$nulls":7},"EUR",{"$nulls":4},"EUR",{"$f":"E9+J9","v":0},{"$nulls":3},"EUR"]
[{"$nulls":4},"Fachkraftstun-\nden pro Woche",{"$nulls":3},"h"]
["weitere öffentliche Mittel*",{"$nulls":7},"EUR",{"$nulls":4},"EUR",{"$f":"SUM(E11:M11)","v":0},{"$nulls":3},"EUR"]
["sonstige Finanzierungsquellen",{"$nulls":7},"EUR",{"$nulls":4},"EUR",{"$f":"SUM(E12:M12)","v":0},{"$nulls":3},"EUR"]
["Eigenmittel",{"$nulls":7},"EUR",{"$nulls":4},"EUR",{"$f":"SUM(E13:M13)","v":0},{"$nulls":3},"EUR"]
["gesamt",{"$nulls":3},{"$f":"E9+E11+E12+E13","v":0},{"$nulls":3},"EUR",{"$f":"SUM(J9:M13)","v":0},{"$nulls":3},"EUR",{"$f":"SUM(E14:M14)","v":0},{"$nulls":3},"EUR"]
[{"$nulls":7},{"$f":"IF(E6<>E14,\"Fehler: Ausgaben ungleich Finanzierung\",\"\")","v":""},null,{"$f":"IF(J6<>J14,\"Fehler: Ausgaben ungleich Finanzierung\",\"\")","v":""},{"$nulls":9},"Beachten Sie bitte erst etwaige Fehlermeldung, wenn Sie vermeintlich fertig sind mit dem Ausfüllen."]
["Eigenleistungen",{"$nulls":3},"Anzahl der Stunden",{"$nulls":4},{"v":8.5,"d":"8.50 €"},{"$nulls":4},"in EUR"]
[{"$nulls":9},"je Stunde",{"$nulls":4},{"$f":"E17*J16","v":0}]
["Eigenanteil",{"$nulls":3},"Eigenmittel in %",{"$nulls":4},"Eigenleistungen in %",{"$nulls":4}," = Eigenanteil in %"]
[{"$nulls":4},{"$f":"ROUND(O13*100/O6,1)","v":{"$error":"#DIV/0!"}},{"$nulls":4},{"$f":"ROUND(O17*100/(O6+O17),1)","v":{"$error":"#DIV/0!"}},{"$nulls":4},{"$f":"ROUND((O17+O13)*100/(O6+O17),1)","v":{"$error":"#DIV/0!"}}]
["Platz für Bemerkungen"]
[{"$nulls":19},"Absatz einfügen: ALT- und Enter-Taste gleichzeitig drücken"]